Workbook

Sheet SM-sarja
B1: Aulis Paski | E1: 10.6.1947 Nurmo | N1: Nimetty Pesäpallon kunniagalleriaan 9.7.2022
B2: MESTARUUSSARJA | E2: Runkosarja | K2: Runkosarja | O2: Arvo-ottelut | R2: Mitalit | T2: Tittelit
B3: Vuosi | C3: Sija | D3: Seura | E3: OTT | F3: KUN | G3: LÖI | H3: TOI | J3: LÖI | K3: TOI | L3: L+T | N3: IL | O3: LL | Q3: 1 | R3: 2 | S3: 3
B4: 1962 | C4: 12. | D4: NJ | E4: 1 | F4: 0 | G4: 0 | H4: 1
B5: 1963 | C5: 2. | D5: NJ | F5: suomensarja
B6: 1964 | C6: 2. | D6: NJ | F6: suomensarja
B7: 1965 | C7: 2. | D7: NJ | F7: suomensarja
B8: 1966 | C8: 1. | D8: NJ | F8: suomensarja
B9: 1967 | C9: 9. | D9: NJ | E9: 22 | F9: 1 | G9: 15 | H9: 27 | K9: 21. | L9: 27. | N9: 1
B10: 1968 | C10: 6. | D10: NJ | E10: 22 | F10: 0 | G10: 10 | H10: 29 | K10: 14. | L10: 25. | O10: 1
B11: 1969 | C11: 8. | D11: NJ | E11: 22 | F11: 1 | G11: 16 | H11: 34 | K11: 6. | L11: 8.
B12: 1970 | C12: 7. | D12: NJ | E12: 22 | F12: 2 | G12: 18 | H12: 39 | J12: 22. | K12: 2. | L12: 3.
B13: 1971 | C13: 12. | D13: NJ | E13: 22 | F13: 0 | G13: 15 | H13: 10
B14: 1972 | C14: 9. | D14: PuMu | E14: 22 | F14: 2 | G14: 15 | H14: 18 | J14: 28. | O14: 1
B15: 1973
B16: 1974 | C16: 12. | D16: PuMu | E16: 22 | F16: 3 | G16: 17 | H16: 14 | J16: 14. | L16: 23.
B17: Yhteensä | E17: =SUM(E4:E16) -> 155 | F17: 9 | G17: 106 | H17: 172 | J17: 0-0-0 | K17: 0-1-0 | L17: 0-0-1 | N17: 1 | O17: 2 | P17: 0 | Q17: 0 | R17: 0 | S17: 0
B18: Pesispörssi | D18: =SUM(E17/3+F17*5/3+G17*5/3+H17*5/3+N17*25+O17*25+P17*15+Q17*25+R17*20+S17*15) -> 605.0
B20: ENSIMMÄISET MESTARUUSSARJASSA | U20: KATSOJIA YLI 5000 ( 1 )
B21: Ottelu | D21: 23.09. 1962 KPL - NJ 7-14 | J21: 1. ottelu | M21: 15 v 3 kk 13 pv | U21: 5124 | V21: 55. 12.05. 1974 SMJ - PuMu 10-1
B22: Lyöty | D22: 15.05. 1967 ViVe - NJ 10-11 | J22: 3. ottelu | M22: 19 v 11 kk 5 pv
B23: Tuotu | D23: 23.09. 1962 KPL - NJ 7-14 | J23: 1. ottelu | M23: 15 v 3 kk 13 pv
B24: Kunnari | D24: 06.08. 1967 KPL - NJ 17-5 | J24: 16. ottelu | M24: 20 v 1 kk 27 pv
B26: Seurat | D26: NJ = Nurmon Jymy (1925), kasvattajaseura | L26: PuMu = Helsingin Puna-Mustat (1941)
B28: RUNKOSARJA, KA / OTT | F28: IKÄ | G28: OTT | H28: LÖI | J28: TOI | K28: TEHO | N28: SIJOITUS | P28: OTT | Q28: LÖI | R28: TOI | S28: TEHO | U28: YLEISÖENNÄTYS KOTONA
B29: 1962 | C29: 12. | D29: NJ | F29: 15 | G29: 1 | H29: =PRODUCT((F4+G4)/E4) -> 0.00 | J29: =PRODUCT(H4/E4) -> 1.00 | K29: =PRODUCT((F4+G4+H4)/E4) -> 1.00 | N29: 1945 - 1962 | P29: 438. | R29: 401. | S29: 425. | U29: 3174 | V29: 639. 24.06. 1970 NJ - SMJ 7-13
B30: 1963 | C30: 2. | D30: NJ | F30: 16 | N30: 1945 - 1963 | P30: 475. | R30: 437. | S30: 464.
B31: 1964 | C31: 2. | D31: NJ | F31: 17 | N31: 1945 - 1964 | P31: 510. | R31: 464. | S31: 493. | U31: YLEISÖENNÄTYS VIERAISSA
B32: 1965 | C32: 2. | D32: NJ | F32: 18 | N32: 1945 - 1965 | P32: 550. | R32: 504. | S32: 535. | U32: 5124 | V32: 55. 12.05. 1974 SMJ - PuMu 10-1
B33: 1966 | C33: 1. | D33: NJ | F33: 19 | N33: 1945 - 1966 | P33: 576. | R33: 532. | S33: 562.
B34: 1967 | C34: 9. | D34: NJ | F34: 20 | G34: 22 | H34: =PRODUCT((F9+G9)/E9) -> 0.73 | J34: =PRODUCT(H9/E9) -> 1.23 | K34: =PRODUCT((F9+G9+H9)/E9) -> 1.95 | N34: 1945 - 1967 | P34: 348. | Q34: 279. | R34: 239. | S34: 263. | U34: RUNKOSARJA
B35: 1968 | C35: 6. | D35: NJ | F35: 21 | G35: 22 | H35: 0.45 | J35: 1.32 | K35: 1.77 | N35: 1945 - 1968 | P35: 253. | Q35: 235. | R35: 146. | S35: 201. | U35: KATSOJIA | W35: 207 925
B36: 1969 | C36: 8. | D36: NJ | F36: 22 | G36: 22 | H36: 0.77 | J36: 1.55 | K36: 2.32 | N36: 1945 - 1969 | P36: 200. | Q36: 178. | R36: 88. | S36: 113. | U36: OTTELUT | W36: 155
B37: 1970 | C37: 7. | D37: NJ | F37: 23 | G37: 22 | H37: 0.91 | J37: 1.77 | K37: 2.68 | N37: 1945 - 1970 | P37: 140. | Q37: 124. | R37: 54. | S37: 85. | U37: KA / OTT | W37: 1341
B38: 1971 | C38: 12. | D38: NJ | F38: 24 | G38: 22 | H38: 0.68 | J38: 0.45 | K38: 1.14 | N38: 1945 - 1971 | P38: 114. | Q38: 98. | R38: 49. | S38: 74.
B39: 1972 | C39: 9. | D39: PuMu | F39: 25 | G39: 22 | H39: 0.77 | J39: 0.82 | K39: 1.59 | N39: 1945 - 1972 | P39: 85. | Q39: 85. | R39: 36. | S39: 60. | U39: KUNNARIT YHDESSÄ OTTELUSSA
B40: 1973 | F40: 26 | N40: 1945 - 1973 | P40: 89. | Q40: 91. | R40: 37. | S40: 62. | U40: 31.05.1970 PKP - NJ 3-21 2
B41: 1974 | C41: 12. | D41: PuMu | F41: 27 | G41: 22 | H41: 0.91 | J41: 0.64 | K41: 1.55 | N41: 1945 - 1974 | P41: 62. | Q41: 66. | R41: 34. | S41: 50.

Sheet Arvo-ottelut
B1: ITÄ - LÄNSI - KORTTI
B2: Aulis Paski | C2: 10.6.1947 Nurmo
B3: MIEHET | C3: Itä - Länsi, tulos | D3: Joukkue | E3: Seura | G3: V | H3: T | I3: H | J3: Up. | K3: Lj. | L3: Palk. | M3: O | N3: K | O3: L | P3: T | Q3: KL | R3: 1 | S3: 2 | T3: 3 | U3: k | V3: KL-% | W3: Pelinjohtaja | X3: Yleisöä
B4: 10.09. 1967 Hesperia, Helsinki | C4: 4-4 | D4: Länsi | E4: NJ | H4: 1 | K4: vai | M4: 1 | W4: Paavo Mäntylä | X4: 4460
B5: Ikä ensimmäisessä ottelussa | C5: 20 v 3 kk 0 pv
B7: A-POJAT | C7: Itä - Länsi, tulos | D7: Joukkue | E7: Seura | G7: V | H7: T | I7: H | J7: Up. | K7: Lj. | L7: Palk. | M7: O | N7: K | O7: L | P7: T | Q7: KL | R7: 1 | S7: 2 | T7: 3 | U7: k | V7: KL-% | W7: Pelinjohtaja | X7: Yleisöä
B8: 13.09. 1964 Vimpeli | C8: 7-8 | D8: Länsi | E8: NJ | G8: 1 | K8: vai | M8: 1 | W8: Anssi Jokinen | X8: 103
B9: 19.09. 1965 Parkano | C9: 6-10 | D9: Länsi | E9: NJ | G9: 1 | J9: 3p | K9: 1 | M9: 1 | P9: 2 | W9: Unto Lammi | X9: 542
B11: LIITTO - LEHDISTÖ - KORTTI
B12: MIEHET | C12: Tulos | D12: Joukkue | E12: Seura | G12: V | H12: T | I12: H | J12: Up. | K12: Lj. | L12: Palk. | M12: O | N12: K | O12: L | P12: T | Q12: KL | R12: 1 | S12: 2 | T12: 3 | U12: k | V12: KL-% | W12: Pelinjohtaja | X12: Yleisöä
B13: 19.06. 1968 Seinäjoki | C13: 5-7 | D13: Lehdistö | E13: NJ | G13: 1 | J13: 1v | M13: 1 | W13: Timo Raussi | X13: 2100
B14: 28.06. 1972 Joensuu | C14: 7-7 | D14: Lehdistö | E14: PuMu | H14: 1 | J14: 2v | K14: 3 | M14: 1 | O14: 2 | P14: 1 | W14: Olavi Kokko | X14: 1910
B15: Ikä ensimmäisessä ottelussa | C15: 21 v 0 kk 9 pv

Sheet Pelinjohtaja
B1: PELINJOHTAJAKORTTI
B2: Aulis Paski | D2: 10.6.1947 Nurmo
B3: MSU | C3: Runkosarja | K3: Ylempi loppusarja | P3: Alempi loppusarja | U3: Arvo-ottelut | X3: Mitalit | AB3: PLAY OFF
B4: Vuosi | C4: Seura | D4: Sija | E4: O | F4: V | G4: T | H4: H | I4: Voitto-% | K4: O | L4: V | M4: T | N4: H | O4: Voitto-% | P4: O | Q4: V | R4: T | S4: H | T4: Voitto-% | U4: IL | V4: LL | W4: Cup | X4: 1 | Y4: 2 | Z4: 3 | AB4: Puolivälierä | AC4: Välierä | AD4: Pronssi | AE4: Finaali | AF4: Tittelit
B5: 1973 | C5: PuMu | D5: 1. | E5: 22 | F5: 15 | G5: 2 | H5: 5 | I5: =PRODUCT(F5/E5) -> 68.2 % | K5: 1 | L5: 1 | M5: 0 | N5: 0 | O5: =PRODUCT(L5/K5) -> 100.0 % | V5: 1 | X5: 1 | AB5: Uusintaottelu
B6: 1974 | D6: pelasi Puna-Mustissa, töissä Liitossa | U6: 1
B7: 1975 | C7: Tahko | D7: 8. | E7: 22 | F7: 9 | G7: 1 | H7: 12 | I7: =PRODUCT(F7/E7) -> 40.9 % | V7: 1
B8: 1976 | C8: Tahko | D8: 6. | E8: 22 | F8: 11 | G8: 2 | H8: 9 | I8: =PRODUCT(F8/E8) -> 50.0 % | W8: 1
B9: 1977 | C9: Tahko | D9: 4. | E9: 22 | F9: 12 | G9: 1 | H9: 9 | I9: =PRODUCT(F9/E9) -> 54.5 % | V9: 1
B10: 1978 | C10: Tahko | D10: 3. | E10: 22 | F10: 14 | G10: 2 | H10: 6 | I10: 63.6 % | U10: 1 | V10: 1 | Z10: 1
B11: 1979 | C11: Tahko | D11: 1. | E11: 22 | F11: 17 | G11: 2 | H11: 3 | I11: 77.3 % | K11: 7 | L11: 4 | M11: 2 | N11: 1 | O11: =PRODUCT(L11/K11) -> 57.1 % | U11: 1 | V11: 1 | X11: 1 | AB11: Mitalisarja
B12: 1980 | C12: Tahko | D12: 1. | E12: 22 | F12: 20 | G12: 0 | H12: 2 | I12: 90.9 % | K12: 6 | L12: 4 | M12: 0 | N12: 2 | O12: =PRODUCT(L12/K12) -> 66.7 % | U12: 1 | V12: 1 | X12: 1 | AB12: Mitalisarja
B13: 1981 | C13: Tahko | D13: 1. | E13: 22 | F13: 19 | G13: 2 | H13: 1 | I13: 86.4 % | K13: 6 | L13: 4 | M13: 0 | N13: 2 | O13: =PRODUCT(L13/K13) -> 66.7 % | U13: 1 | V13: 1 | X13: 1 | AB13: Mitalisarja
B14: 1982 | C14: Tahko | D14: 3. | E14: 22 | F14: 12 | G14: 2 | H14: 8 | I14: 54.5 % | K14: 6 | L14: 3 | M14: 0 | N14: 3 | O14: =PRODUCT(L14/K14) -> 50.0 % | U14: 1 | Z14: 1 | AB14: Mitalisarja
B15: 1983 | C15: Tahko | D15: 2. | E15: 22 | F15: 15 | G15: 1 | H15: 6 | I15: 68.2 % | K15: 6 | L15: 3 | M15: 0 | N15: 3 | O15: =PRODUCT(L15/K15) -> 50.0 % | U15: 1 | Y15: 1 | AB15: Mitalisarja
B16: 1984 | C16: Tahko | D16: 9. | E16: 22 | F16: 6 | G16: 2 | H16: 14 | I16: 27.3 % | P16: 6 | Q16: 4 | R16: 1 | S16: 1 | T16: =PRODUCT(Q16/P16) -> 66.7 %
B17: 1986 | C17: Tahko | D17: 7. | E17: 22 | F17: 9 | G17: 2 | H17: 11 | I17: =PRODUCT(F17/E17) -> 40.9 % | P17: 5 | Q17: 3 | R17: 1 | S17: 1 | T17: =PRODUCT(Q17/P17) -> 60.0 %
B18: 1994 | C18: Tahko | D18: 2. | E18: 34 | F18: 24 | G18: 2 | H18: 8 | I18: =PRODUCT(F18/E18) -> 70.6 % | K18: 4 | L18: 2 | N18: 2 | O18: =PRODUCT(L18/K18) -> 50.0 % | Y18: 1 | AC18: 2-0 SoJy | AE18: 0-2 Lippo
B19: 1995 | C19: Tahko | D19: 4. | E19: 29 | F19: 16 | G19: 0 | H19: 13 | I19: =PRODUCT(F19/E19) -> 55.2 % | K19: 10 | L19: 3 | N19: 7 | O19: =PRODUCT(L19/K19) -> 30.0 % | AB19: 3-2 KiPa | AC19: 0-3 Lippo | AD19: 0-2 SMJ
B20: 2000 | C20: HP | D20: 14. | E20: 28 | F20: 5 | G20: 0 | H20: 23 | I20: =PRODUCT(F20/E20) -> 17.9 % | P20: 7 | Q20: 4 | S20: 3 | T20: =PRODUCT(Q20/P20) -> 57.1 %
B21: 2004 | AF21: Johtokunnan pytty
B22: Yhteensä | E22: =SUM(E5:E21) -> 355 | F22: =SUM(F5:F21) -> 204 | G22: =SUM(G5:G21) -> 21 | H22: =SUM(H5:H21) -> 130 | I22: =PRODUCT(F22/E22) -> 57.5 % | K22: =SUM(K5:K21) -> 46 | L22: =SUM(L5:L21) -> 24 | M22: =SUM(M5:M21) -> 2 | N22: =SUM(N5:N21) -> 20 | O22: =PRODUCT(L22/K22) -> 52.2 % | P22: =SUM(P5:P21) -> 18 | Q22: =SUM(Q5:Q21) -> 11 | R22: =SUM(R5:R21) -> 2 | S22: =SUM(S5:S21) -> 5 | T22: =PRODUCT(Q22/P22) -> 61.1 % | U22: =SUM(U5:U21) -> 7 | V22: 7 | W22: 1 | X22: 4 | Y22: 2 | Z22: 2 | AB22: 1 - 0 | AC22: 1 - 1 | AD22: 0 - 1 | AE22: 0 - 1
B24: URA SUPERISSA | E24: O | F24: V | G24: T | H24: H | I24: Voitto-% | K24: PLAY OFF | O24: SARJAT | P24: O | Q24: V | R24: T | S24: H | T24: Voitto-% | AB24: Seurat: | AC24: PuMu = Helsingin Puna-Mustat (1941)
B25: Runkosarja | E25: =PRODUCT(E22) -> 355 | F25: =PRODUCT(F22) -> 204 | G25: =PRODUCT(G22) -> 21 | H25: =PRODUCT(H22) -> 130 | I25: =PRODUCT(F25/E25) -> 57.5 % | K25: Puolivälierät | O25: 1 - 0 | P25: =PRODUCT(Q25+S25) -> 5 | Q25: 3 | S25: 2 | T25: =PRODUCT(Q25/P25) -> 60.0 % | AC25: Tahko = Hyvinkään Tahko (1915)
B26: Ylempi loppusarja | E26: =SUM(K22) -> 46 | F26: =SUM(L22) -> 24 | G26: 2 | H26: =SUM(N22) -> 20 | I26: =PRODUCT(F26/E26) -> 52.2 % | K26: Välierät | O26: 1 - 1 | P26: =PRODUCT(Q26+S26) -> 5 | Q26: 2 | S26: 3 | T26: =PRODUCT(Q26/P26) -> 40.0 % | AC26: HP = Haminan Palloilijat (1928)
K27: Pronssi | O27: 0 - 1 | P27: 2 | Q27: 0 | S27: 2 | T27: 0.0 %
B28: Alempi loppusarja | E28: =SUM(P22) -> 18 | F28: =SUM(Q22) -> 11 | G28: 2 | H28: =SUM(S22) -> 5 | I28: =PRODUCT(F28/E28) -> 61.1 % | K28: Finaalit | O28: 0 - 1 | P28: =PRODUCT(Q28+S28) -> 2 | Q28: 0 | S28: 2 | T28: =PRODUCT(Q28/P28) -> 0.0 %
B29: KAIKKI | E29: =SUM(E25:E28) -> 419 | F29: =SUM(F25:F28) -> 239 | G29: =SUM(G25:G28) -> 25 | H29: =SUM(H25:H28) -> 155 | I29: =PRODUCT(F29/E29) -> 57.0 % | K29: KAIKKI | P29: =SUM(P25:P28) -> 14 | Q29: =SUM(Q25:Q28) -> 5 | R29: =SUM(R25:R28) -> 0 | S29: =SUM(S25:S28) -> 9 | T29: =PRODUCT(Q29/P29) -> 35.7 %
